fUSD/lending_fUSD_20250519
["ID","MTS","AMOUNT","RATE_DAILY","PERIOD"]
[361629934,1747651846227,-151.0,0.00013698,2]
[361629935,1747651846240,-984.85,0.00013698,2]
[361629936,1747651846251,-420.0,0.00013698,2]
[361629937,1747651846262,-500.0,0.00013698,2]
[361629938,1747651846272,-500.0,0.00013698,2]
[361629939,1747651846283,-500.0,0.00013698,2]
[361629940,1747651846295,-250.0,0.00013698,2]
[361629941,1747651846307,-1005.02,0.00013698,2]
[361629942,1747651846318,-625.79,0.00013698,2]
[361629943,1747651846329,-420.0,0.00013698,2]
[361629944,1747651846340,-882.71,0.00013698,2]
[361629945,1747651846350,-420.0,0.00013698,2]
[361629946,1747651846361,-400.0,0.00013698,2]
[361629947,1747651846371,-347.37783078,0.00013698,2]
[361629948,1747651846382,-3713.45,0.00013698,2]
[361629949,1747651846393,-400.0,0.00013698,2]
[361629950,1747651846407,-2221.26,0.00013698,2]
[361629951,1747651846419,-1579.48,0.00013698,2]
[361629952,1747651846431,-3534.59,0.00013698,2]
[361629953,1747651846443,-938.08,0.00013698,2]
[361629954,1747651846454,-492.03,0.00013698,2]
[361629955,1747651846466,-400.0,0.00013698,2]
[361629956,1747651846477,-926.27,0.00013698,2]
[361629957,1747651846488,-1054.91,0.00013698,2]
[361629958,1747651846499,-1299.21,0.00013698,2]
[361629959,1747651846510,-420.0,0.00013698,2]
[361629960,1747651846520,-400.0,0.00013698,2]
[361629961,1747651846531,-500.0,0.00013698,2]
[361629962,1747651846542,-397.3076851,0.00013698,2]
[361629963,1747651846553,-144616.4,0.00013698,2]
[361629964,1747651846564,-420.0,0.00013698,2]
[361629965,1747651846574,-1271.86,0.00013698,2]
[361629966,1747651846590,-530.52,0.00013698,2]
[361629967,1747651846600,-151.0,0.00013698,2]
[361629968,1747651846611,-1008.16,0.00013698,2]
[361629969,1747651846622,-420.0,0.00013698,2]
[361629970,1747651846633,-449.82,0.00013698,2]
[361629971,1747651846644,-420.0,0.00013698,2]
[361629972,1747651846655,-631.25,0.00013698,2]
[361629973,1747651846666,-420.0,0.00013698,2]
[361629975,1747651846677,-566.51,0.00013698,2]
[361629976,1747651846687,-666.57,0.00013698,2]
[361629977,1747651846699,-400.34836304,0.00013698,2]
[361629978,1747651846710,-420.0,0.00013698,2]
[361629979,1747651846721,-644.36,0.00013698,2]
[361629980,1747651846731,-420.0,0.00013698,2]
[361629981,1747651846743,-420.0,0.00013698,2]
[361629982,1747651846755,-668.41,0.00013698,2]
[361629983,1747651846765,-420.0,0.00013698,2]
[361629984,1747651846776,-1179.35,0.00013698,2]
[361629985,1747651846787,-420.0,0.00013698,2]
[361629986,1747651846798,-420.0,0.00013698,2]
[361629987,1747651846808,-420.0,0.00013698,2]
[361629988,1747651846819,-420.0,0.00013698,2]
[361629989,1747651846830,-8169.73938807,0.00013698,2]
[361629990,1747651986909,-200.0,0.00012168,2]
[361629991,1747651991162,-313.29717659,0.00012168,2]
[361629992,1747652054045,-272.86357278,0.00012106,2]
[361629993,1747652057195,-277.95642722,0.00012106,2]
[361629994,1747652513695,-160.60790816,0.00012015,2]
[361629996,1747652662676,-200.0,0.00012015,2]
[361629997,1747652664312,-154.0330413,0.00012015,2]
[361629998,1747652667526,-192.6246387,0.00012015,2]
[361629999,1747652669328,-152.06784727,0.00012015,2]
[361630000,1747652670511,-159.04601172,0.00012015,2]
[361630001,1747652672661,-188.88614101,0.00012015,2]
[361630002,1747652823665,746.11,0.00010129,2]
[361630003,1747652902666,-184.75706224,0.00011977,2]
[361630004,1747652923898,150.051919,0.000273,120]
[361630005,1747652925069,150.051919,0.000273,120]
[361630006,1747652925896,150.051919,0.000273,120]
[361630007,1747652926872,150.051919,0.000273,120]
[361630009,1747652960776,-1161.227861,0.00011975,2]
[361630010,1747652960798,-300.0,0.00012036,2]
[361630011,1747652960820,-10734.41,0.00012037,2]
[361630012,1747652960840,-167.04,0.00012046,2]
[361630013,1747652960860,-250.0,0.00012051,2]
[361630014,1747652960881,-1263.5,0.00012056,2]
[361630015,1747652960900,-200.0,0.00012064,2]
[361630016,1747652960921,-802.9,0.00012065,2]
[361630017,1747652960940,-150.0,0.00012068,2]
[361630018,1747652960960,-200.0,0.00012069,2]
[361630019,1747652960982,-550.82,0.00012087,2]
[361630020,1747652961002,-187.02056026,0.00012106,2]
[361630021,1747652961023,-1000.0,0.0001213,2]
[361630022,1747652961044,-2751.0,0.00012155,2]
[361630023,1747652961065,-589.3,0.00012155,2]
[361630024,1747652961085,-180.97,0.00012156,2]
[361630025,1747652961105,-300.0,0.00012156,2]
[361630026,1747652961127,-1200.0,0.00012157,2]
[361630027,1747652961146,-845.85,0.00012159,2]
[361630028,1747652961165,-4000.0,0.0001216,2]
[361630029,1747652961186,-22718.23882775,0.00012168,2]
[361630030,1747652962087,-161.74608294,0.00012168,2]
[361630032,1747653032410,-285.35132997,0.00012168,2]
[361630033,1747653032472,-221.36658275,0.00012168,2]
[361630034,1747653032756,-362.06,0.00012172,2]
[361630035,1747653032769,-815.06978727,0.00012386,2]
[361630036,1747653032780,-207.94358998,0.00012386,2]
[361630040,1747653032816,-607.12619729,0.00012386,2]
[361630042,1747653032826,-746.11,0.00012393,2]
[361630045,1747653032838,-200.0,0.00012482,2]
[361630047,1747653032848,-154.02,0.0001252,2]
[361630049,1747653032861,-197.56,0.00012732,2]
[361630051,1747653032870,-150.0,0.00012746,2]
[361630053,1747653032880,-208.17,0.00012746,2]
[361630055,1747653032890,-208.17,0.0001275,2]
[361630057,1747653032899,-208.17,0.00012753,2]
[361630059,1747653032909,-208.17,0.00012756,2]
[361630061,1747653032919,-208.17,0.0001276,2]
[361630063,1747653032928,-208.17,0.00012763,2]
[361630065,1747653032938,-208.17,0.00012766,2]
[361630066,1747653032950,-208.17,0.0001277,2]
[361630069,1747653032961,-208.17,0.00012773,2]
[361630071,1747653032972,-208.17,0.00012776,2]
[361630073,1747653032981,-208.17,0.0001278,2]
[361630074,1747653032990,-1200.0,0.00012782,2]
[361630077,1747653033000,-208.17,0.00012783,2]
[361630079,1747653033011,-208.17,0.00012786,2]
[361630081,1747653033021,-208.17,0.0001279,2]
[361630083,1747653033032,-208.17,0.00012793,2]
[361630085,1747653033042,-208.17,0.00012797,2]
[361630087,1747653033052,-208.17,0.000128,2]
[361630089,1747653033062,-208.17,0.00012803,2]
[361630091,1747653033072,-208.17,0.00012807,2]
[361630093,1747653033081,-208.17,0.0001281,2]
[361630095,1747653033091,-250.0,0.00013,2]
[361630097,1747653033100,-15986.0342887,0.00013051,2]
[361630099,1747653033109,-151.0,0.00013061,2]
[361630101,1747653033119,-668.65185757,0.00013061,2]
[361630103,1747653033128,-668.65185757,0.00013061,2]
[361630105,1747653033137,-1199.20597015,0.00013061,2]
[361630107,1747653033146,-207.4,0.00013061,2]
[361630109,1747653033156,-265.02668884,0.00013106,2]
[361630111,1747653033164,-250.0,0.00013174,2]
[361630113,1747653033173,-250.0,0.00013203,2]
[361630114,1747653033183,-200.0,0.00013385,2]
[361630115,1747653033192,-250.0,0.00013385,2]
[361630116,1747653033203,-349.566,0.00013393,2]
[361630117,1747653033213,-200.0,0.00013401,2]
[361630118,1747653033222,-150.051919,0.00013448,2]
[361630119,1747653033231,-150.051919,0.00013448,2]
[361630120,1747653033241,-150.051919,0.00013448,2]
[361630121,1747653033250,-1000.0,0.00013482,2]
[361630122,1747653033259,-1000.0,0.00013482,2]
[361630123,1747653033268,-12458.0308,0.00013493,2]
[361630124,1747653033278,-14175.71504341,0.00013493,2]
[361630125,1747653033289,-20885.44505659,0.00013493,2]
[361630126,1747653033299,-341.3767673,0.00013531,2]
[361630127,1747653033308,-150.051919,0.00013548,2]
[361630129,1747653033318,-150.051919,0.00013548,2]
[361630132,1747653033328,-150.051919,0.00013548,2]
[361630134,1747653033337,-150.051919,0.00013548,2]
[361630135,1747653033346,-167.04,0.00013552,2]
[361630136,1747653033355,-154.02,0.00013553,2]
[361630137,1747653033365,-639.66488611,0.00013563,2]
[361630138,1747653033375,-691.55325809,0.00013593,2]
[361630139,1747653033387,-2362.21161973,0.00013598,2]
[361630140,1747653033396,-150.20772618,0.00013598,2]
[361630141,1747653033406,-572.99350179,0.00013598,2]
[361630142,1747653033416,-164.20923598,0.00013598,2]
[361630143,1747653033426,-500.0,0.00013599,2]
[361630144,1747653033436,-500.0,0.00013599,2]
[361630145,1747653033446,-500.0,0.00013599,2]
[361630146,1747653033456,-500.0,0.00013599,2]
[361630147,1747653033466,-500.0,0.00013599,2]
[361630148,1747653033476,-500.0,0.00013599,2]
[361630149,1747653033486,-500.0,0.00013599,2]
[361630150,1747653033496,-500.0,0.00013599,2]
[361630151,1747653033505,-500.0,0.00013599,2]
[361630152,1747653033515,-500.0,0.00013599,2]
[361630153,1747653033524,-296.64107658,0.00013599,2]
[361630154,1747653033534,-500.0,0.00013599,2]
[361630155,1747653033544,-500.0,0.00013599,2]
[361630156,1747653033553,-500.0,0.00013599,2]
[361630157,1747653033563,-500.0,0.00013599,2]
[361630158,1747653033572,-500.0,0.00013599,2]
[361630159,1747653033582,-500.0,0.00013599,2]
[361630160,1747653033591,-500.0,0.00013599,2]
[361630161,1747653033600,-500.0,0.00013599,2]
[361630162,1747653033610,-500.0,0.00013599,2]
[361630163,1747653033620,-500.0,0.00013599,2]
[361630164,1747653033629,-500.0,0.00013599,2]
[361630165,1747653033639,-500.0,0.00013599,2]
[361630166,1747653033649,-500.0,0.00013599,2]
[361630167,1747653033659,-500.0,0.00013599,2]
[361630168,1747653033668,-500.0,0.00013599,2]
[361630169,1747653033678,-500.0,0.00013599,2]
[361630170,1747653033687,-500.0,0.00013599,2]
[361630171,1747653033698,-350.0,0.00013599,2]
[361630172,1747653033708,-1728.60310233,0.000136,2]
[361630173,1747653033726,-300.0,0.000136,2]
[361630175,1747653038268,-3914.39689767,0.000136,2]
[361630176,1747653038278,-1149.0,0.000136,2]
[361630177,1747653038287,-693.3919763,0.00013609,2]
[361630178,1747653038296,-3789.07144581,0.00013615,2]
[361630181,1747653039015,-3040.92855419,0.00013615,2]
[361630182,1747653039024,-4043.0,0.00013615,2]
[361630183,1747653039034,-159.209,0.00013615,2]
[361630184,1747653039044,-154.0,0.00013615,2]
[361630185,1747653039053,-2362.21161964,0.00013632,2]
[361630186,1747653039063,-2424.9866174,0.00013639,2]
[361630187,1747653039072,-1000.0,0.00013646,2]
[361630188,1747653039081,-150.051919,0.00013648,2]
[361630189,1747653039091,-150.051919,0.00013648,2]
[361630190,1747653039100,-150.051919,0.00013648,2]
[361630191,1747653039109,-150.051919,0.00013648,2]
[361630192,1747653039118,-2362.21161964,0.00013665,2]
[361630193,1747653039127,-500.0,0.00013673,2]
[361630194,1747653039136,-500.37503577,0.00013673,2]
[361630195,1747653039146,-500.0,0.00013673,2]
[361630196,1747653039155,-500.0,0.00013673,2]
[361630197,1747653039164,-507.55713397,0.00013673,2]
[361630198,1747653039174,-500.0,0.00013673,2]
[361630199,1747653039183,-500.0,0.00013673,2]
[361630200,1747653039192,-589.3,0.00013675,2]
[361630201,1747653039201,-351.11683563,0.00013684,2]
[361630202,1747653039211,-191.2342125,0.00013688,2]
[361630203,1747653039220,-167.65,0.00013688,2]
[361630204,1747653039229,-2000.0,0.00013693,2]
[361630205,1747653039238,-200.0,0.00013693,2]
[361630206,1747653039248,-192.50998839,0.00013697,2]
[361630207,1747653039257,-291.51498353,0.00013697,2]
[361630208,1747653039267,-151.0,0.00013698,2]
[361630209,1747653039276,-297.573732,0.00013698,2]
[361630210,1747653039286,-151.0,0.00013698,2]
[361630211,1747653039295,-256.910295,0.00013698,2]
[361630212,1747653039304,-151.0,0.00013698,2]
[361630213,1747653039314,-151.0,0.00013698,2]
[361630214,1747653039324,-211.115358,0.00013698,2]
[361630215,1747653039333,-211.115358,0.00013698,2]
[361630216,1747653039343,-211.115358,0.00013698,2]
[361630217,1747653039353,-211.115358,0.00013698,2]
[361630218,1747653039362,-151.0,0.00013698,2]
[361630219,1747653039371,-151.0,0.00013698,2]
[361630220,1747653039380,-277.745481,0.00013698,2]
[361630221,1747653039391,-151.0,0.00013698,2]
[361630222,1747653039402,-151.0,0.00013698,2]
[361630223,1747653039412,-397.51341028,0.00013698,2]
[361630224,1747653039422,-164.80463212,0.00013698,2]
[361630225,1747653039431,-853.319427,0.00013698,2]
[361630226,1747653039440,-853.319427,0.00013698,2]
[361630227,1747653039450,-853.319427,0.00013698,2]
[361630228,1747653039459,-853.319427,0.00013698,2]
[361630229,1747653039676,-153.725234,0.00013698,2]
[361630230,1747653039685,-400.48229603,0.00013698,2]
[361630231,1747653039695,-1121.689059,0.00013698,2]
[361630232,1747653039704,-151.0,0.00013698,2]
[361630233,1747653039714,-166.151036,0.00013698,2]
[361630234,1747653039723,-170.520579,0.00013698,2]
[361630235,1747653039732,-310.045039,0.00013698,2]
[361630236,1747653039742,-185.11602989,0.00013698,2]
[361630237,1747653039751,-3148.603039,0.00013698,2]
[361630238,1747653039760,-151.0,0.00013698,2]
[361630239,1747653039772,-200.0,0.00013698,2]
[361630240,1747653039781,-176.580819,0.00013698,2]
[361630241,1747653039790,-176.580819,0.00013698,2]
[361630242,1747653039799,-151.0,0.00013698,2]
[361630243,1747653039808,-215.652865,0.00013698,2]
[361630244,1747653039818,-420.0,0.00013698,2]
[361630245,1747653039828,-360.0,0.00013698,2]
[361630246,1747653039837,-320.0,0.00013698,2]
[361630247,1747653039848,-407.17600583,0.00013698,2]
[361630248,1747653039857,-400.0,0.00013698,2]
[361630249,1747653039866,-400.35985016,0.00013698,2]
[361630250,1747653039875,-420.0,0.00013698,2]
[361630251,1747653039885,-420.0,0.00013698,2]
[361630252,1747653039894,-403.42169906,0.00013698,2]
[361630253,1747653039904,-420.0,0.00013698,2]
[361630254,1747653039913,-151.0,0.00013698,2]
[361630255,1747653039923,-420.0,0.00013698,2]
[361630256,1747653039933,-420.0,0.00013698,2]
[361630257,1747653039942,-400.0,0.00013698,2]
[361630258,1747653039952,-280.0,0.00013698,2]
[361630259,1747653039962,-420.0,0.00013698,2]
[361630260,1747653039972,-945.172895,0.00013698,2]
[361630261,1747653039982,-400.0,0.00013698,2]
[361630262,1747653039992,-400.0,0.00013698,2]
[361630263,1747653040001,-945.172895,0.00013698,2]
[361630264,1747653040010,-420.0,0.00013698,2]
[361630265,1747653040020,-420.0,0.00013698,2]
[361630266,1747653040029,-400.0,0.00013698,2]
[361630267,1747653040039,-420.0,0.00013698,2]
[361630268,1747653040048,-320.0,0.00013698,2]
[361630269,1747653040057,-346.84,0.00013698,2]
[361630270,1747653040066,-400.0,0.00013698,2]
[361630271,1747653040075,-151.0,0.00013698,2]
[361630272,1747653040084,-326.72674275,0.00013698,2]
[361630273,1747653040094,-420.0,0.00013698,2]
[361630274,1747653040103,-420.0,0.00013698,2]
[361630275,1747653040112,-400.0,0.00013698,2]
[361630276,1747653040121,-420.0,0.00013698,2]
[361630277,1747653040131,-420.0,0.00013698,2]
[361630279,1747653040140,-196.46299033,0.00013698,2]
[361630280,1747653040149,-420.0,0.00013698,2]
[361630281,1747653040158,-405.79344764,0.00013698,2]
[361630282,1747653040167,-500.0,0.00013698,2]
[361630283,1747653040176,-420.0,0.00013698,2]
[361630284,1747653040184,-400.0,0.00013698,2]
[361630285,1747653040194,-877.53,0.00013698,2]
[361630286,1747653040203,-580.32,0.00013698,2]
[361630287,1747653040212,-502.01937361,0.00013698,2]
[361630288,1747653040221,-420.0,0.00013698,2]
[361630289,1747653040230,-420.0,0.00013698,2]
[361630290,1747653040239,-440.5,0.00013698,2]
[361630291,1747653040248,-289.22394018,0.00013698,2]
[361630292,1747653040257,-400.0,0.00013698,2]
[361630293,1747653040266,-420.0,0.00013698,2]
[361630294,1747653040275,-420.0,0.00013698,2]
[361630295,1747653040285,-151.0,0.00013698,2]
[361630296,1747653040293,-420.0,0.00013698,2]
[361630297,1747653040303,-401.61679254,0.00013698,2]
[361630298,1747653040312,-420.0,0.00013698,2]
[361630299,1747653040321,-151.0,0.00013698,2]
[361630300,1747653040330,-151.0,0.00013698,2]
[361630301,1747653040339,-400.0,0.00013698,2]
[361630302,1747653040349,-400.0,0.00013698,2]
[361630303,1747653040358,-420.0,0.00013698,2]
[361630304,1747653040367,-420.0,0.00013698,2]
[361630305,1747653040376,-500.0,0.00013698,2]
[361630306,1747653040386,-500.0,0.00013698,2]
[361630307,1747653040395,-166.03184021,0.00013698,2]
[361630308,1747653040403,-1707.425,0.00013698,2]
[361630309,1747653040412,-420.0,0.00013698,2]
[361630310,1747653040421,-420.0,0.00013698,2]
[361630311,1747653040431,-420.0,0.00013698,2]
[361630312,1747653040439,-420.0,0.00013698,2]
[361630313,1747653040448,-418.30981595,0.00013698,2]
[361630314,1747653040467,-1.69018405,0.00013698,2]
[361630315,1747653040476,-420.0,0.00013698,2]
[361630316,1747653040485,-420.0,0.00013698,2]
[361630317,1747653040495,-525.65,0.00013698,2]
[361630318,1747653040503,-420.0,0.00013698,2]
[361630319,1747653040513,-366.20514022,0.00013698,2]
[361630320,1747653040967,-880.0,0.00013615,2]
[361630321,1747653040976,-53.79485978,0.00013698,2]
[361630322,1747653040986,-400.0,0.00013698,2]
[361630323,1747653040996,-402.11715253,0.00013698,2]
[361630324,1747653041005,-402.64050371,0.00013698,2]
[361630325,1747653041015,-420.0,0.00013698,2]
[361630326,1747653041024,-263.14069619,0.00013698,2]
[361630327,1747653041033,-420.0,0.00013698,2]
[361630328,1747653041042,-151.0,0.00013698,2]
[361630329,1747653041051,-192.21947831,0.00013698,2]
[361630331,1747653041060,-151.0,0.00013698,2]
[361630332,1747653041070,-8.37706688,0.00013698,2]
[361630335,1747653041251,-0.01311887,0.00013698,2]
[361630336,1747653041262,-478.45981425,0.00013698,2]
[361630337,1747653041271,-77.10936173,0.00013698,2]
[361630338,1747653041355,-587.22063827,0.00013698,2]
[361630339,1747653041364,-400.0,0.00013698,2]
[361630340,1747653041373,-420.0,0.00013698,2]
[361630341,1747653041382,-401.04565846,0.00013698,2]
[361630342,1747653041393,-431.28493272,0.00013698,2]
[361630343,1747653041402,-420.0,0.00013698,2]
[361630344,1747653041412,-400.14891288,0.00013698,2]
[361630345,1747653041423,-420.0,0.00013698,2]
[361630346,1747653041433,-380.0,0.00013698,2]
[361630347,1747653041444,-400.0,0.00013698,2]
[361630348,1747653041453,-359.76539325,0.00013698,2]
[361630349,1747653041462,-420.0,0.00013698,2]
[361630350,1747653041471,-420.0,0.00013698,2]
[361630351,1747653041480,-420.0,0.00013698,2]
[361630352,1747653041491,-400.0,0.00013698,2]
[361630353,1747653041500,-420.0,0.00013698,2]
[361630354,1747653041511,-400.0,0.00013698,2]
[361630355,1747653041521,-420.0,0.00013698,2]
[361630356,1747653041530,-151.0,0.00013698,2]
[361630357,1747653041541,-151.0,0.00013698,2]
[361630358,1747653041551,-200.0,0.00013698,2]
[361630359,1747653041561,-150.0,0.00013698,2]
[361630360,1747653041571,-150.0,0.00013698,2]
[361630362,1747653041580,-151.0,0.00013698,2]
[361630364,1747653041590,-400.0,0.00013698,2]
[361630365,1747653041599,-152.07041754,0.00013698,2]
[361630366,1747653041608,-151.0,0.00013698,2]
[361630367,1747653041617,-150.0,0.00013698,2]
[361630368,1747653041627,-150.0,0.00013698,2]
[361630369,1747653041637,-420.0,0.00013698,2]
[361630370,1747653041647,-150.0,0.00013698,2]
[361630371,1747653041659,-437.86,0.00013698,2]
[361630372,1747653041670,-310.80069139,0.00013698,2]
[361630373,1747653041680,-420.0,0.00013698,2]
[361630374,1747653041689,-420.0,0.00013698,2]
[361630375,1747653041699,-420.0,0.00013698,2]
[361630376,1747653041709,-420.0,0.00013698,2]
[361630377,1747653041720,-420.0,0.00013698,2]
[361630378,1747653041730,-380.0,0.00013698,2]
[361630379,1747653041740,-420.0,0.00013698,2]
[361630380,1747653041749,-490.74683777,0.00013698,2]
[361630381,1747653041826,-289.41316223,0.00013698,2]
[361630382,1747653041836,-400.0,0.00013698,2]
[361630383,1747653041845,-420.0,0.00013698,2]
[361630384,1747653041855,-420.0,0.00013698,2]
[361630385,1747653041864,-401.9694287,0.00013698,2]
[361630386,1747653041874,-336.285203,0.00013698,2]
[361630387,1747653041883,-420.0,0.00013698,2]
[361630388,1747653041893,-401.2464519,0.00013698,2]
[361630389,1747653041903,-420.0,0.00013698,2]
[361630390,1747653041912,-484.94,0.00013698,2]
[361630391,1747653041921,-401.74571758,0.00013698,2]
[361630392,1747653041930,-420.0,0.00013698,2]
[361630393,1747653041940,-336.285203,0.00013698,2]
[361630394,1747653041949,-370.1201983,0.00013698,2]
[361630395,1747653041959,-420.0,0.00013698,2]
[361630396,1747653041968,-525.48086813,0.00013698,2]
[361630397,1747653041976,-420.0,0.00013698,2]
[361630398,1747653041986,-420.0,0.00013698,2]
[361630399,1747653042001,-420.0,0.00013698,2]
[361630400,1747653042009,-622.77,0.00013698,2]
[361630401,1747653042018,-420.0,0.00013698,2]
[361630402,1747653042028,-387.1666385,0.00013698,2]
[361630403,1747653042039,-420.0,0.00013698,2]
[361630404,1747653042048,-420.0,0.00013698,2]
[361630405,1747653042058,-400.58935804,0.00013698,2]
[361630406,1747653042068,-420.0,0.00013698,2]
[361630407,1747653042078,-151.0,0.00013698,2]
[361630408,1747653042088,-788.03,0.00013698,2]
[361630409,1747653042098,-400.0,0.00013698,2]
[361630410,1747653042107,-420.0,0.00013698,2]
[361630411,1747653042116,-474.18,0.00013698,2]
[361630412,1747653042125,-400.0,0.00013698,2]
[361630413,1747653042134,-528.09,0.00013698,2]
[361630414,1747653042143,-420.0,0.00013698,2]
[361630415,1747653042152,-420.0,0.00013698,2]
[361630416,1747653042161,-400.0,0.00013698,2]
[361630417,1747653042171,-1617.69,0.00013698,2]
[361630418,1747653042181,-420.0,0.00013698,2]
[361630419,1747653042190,-420.0,0.00013698,2]
[361630420,1747653042202,-420.0,0.00013698,2]
[361630421,1747653042211,-420.0,0.00013698,2]
[361630422,1747653042221,-360.0,0.00013698,2]
[361630423,1747653042231,-366.88096896,0.00013698,2]
[361630424,1747653042239,-420.0,0.00013698,2]
[361630425,1747653042250,-420.0,0.00013698,2]
[361630426,1747653042259,-420.0,0.00013698,2]
[361630427,1747653042268,-420.0,0.00013698,2]
[361630428,1747653042279,-420.0,0.00013698,2]
[361630429,1747653042290,-420.0,0.00013698,2]
[361630430,1747653042299,-420.0,0.00013698,2]
[361630431,1747653042310,-987.46,0.00013698,2]
[361630432,1747653042321,-420.0,0.00013698,2]
[361630433,1747653042331,-420.0,0.00013698,2]
[361630434,1747653042341,-380.8253408,0.00013698,2]
[361630435,1747653042350,-420.0,0.00013698,2]
[361630436,1747653042360,-554.27,0.00013698,2]
[361630437,1747653042369,-425.89,0.00013698,2]
[361630438,1747653042381,-420.0,0.00013698,2]
[361630439,1747653042391,-400.0,0.00013698,2]
[361630440,1747653042403,-420.0,0.00013698,2]
[361630441,1747653042415,-420.0,0.00013698,2]
[361630442,1747653042427,-579.49,0.00013698,2]
[361630443,1747653042436,-420.0,0.00013698,2]
[361630444,1747653042447,-856.92,0.00013698,2]
[361630445,1747653042458,-420.0,0.00013698,2]
[361630446,1747653042468,-420.0,0.00013698,2]
[361630447,1747653042478,-400.0,0.00013698,2]
[361630448,1747653042487,-420.0,0.00013698,2]
[361630449,1747653042498,-420.0,0.00013698,2]
[361630450,1747653042510,-529.85,0.00013698,2]
[361630451,1747653042519,-420.0,0.00013698,2]
[361630452,1747653042529,-420.0,0.00013698,2]
[361630453,1747653042540,-420.0,0.00013698,2]
[361630454,1747653042549,-1184.89,0.00013698,2]
[361630455,1747653042558,-420.0,0.00013698,2]
[361630456,1747653042567,-420.0,0.00013698,2]
[361630457,1747653042576,-420.0,0.00013698,2]
[361630458,1747653042585,-420.0,0.00013698,2]
[361630459,1747653042595,-400.0,0.00013698,2]
[361630460,1747653042603,-423.53,0.00013698,2]
[361630461,1747653042612,-420.0,0.00013698,2]
[361630462,1747653042622,-420.0,0.00013698,2]
[361630463,1747653042631,-420.0,0.00013698,2]
[361630464,1747653042640,-642.2,0.00013698,2]
[361630465,1747653042649,-340.0,0.00013698,2]
[361630466,1747653042658,-420.0,0.00013698,2]
[361630467,1747653042668,-420.0,0.00013698,2]
[361630468,1747653042678,-750.61,0.00013698,2]
[361630469,1747653042688,-150.0,0.00013698,2]
[361630470,1747653042697,-420.0,0.00013698,2]
[361630471,1747653042707,-150.0,0.00013698,2]
[361630472,1747653042717,-250.0,0.00013698,2]
[361630473,1747653042726,-150.0,0.00013698,2]
[361630474,1747653042736,-468.6,0.00013698,2]
[361630475,1747653042745,-735.28,0.00013698,2]
[361630476,1747653042754,-150.0,0.00013698,2]
[361630477,1747653042764,-420.0,0.00013698,2]
[361630478,1747653042775,-514.07,0.00013698,2]
[361630479,1747653042789,-405.15820895,0.00013698,2]
[361630480,1747653042799,-420.0,0.00013698,2]
[361630481,1747653042808,-420.0,0.00013698,2]
[361630482,1747653042818,-155.35881018,0.00013698,2]
[361630483,1747653042828,-400.0,0.00013698,2]
[361630484,1747653042837,-420.0,0.00013698,2]
[361630485,1747653042846,-420.81,0.00013698,2]
[361630486,1747653042856,-420.0,0.00013698,2]
[361630487,1747653042866,-400.0,0.00013698,2]
[361630488,1747653042876,-420.0,0.00013698,2]
[361630489,1747653042886,-448.29785865,0.00013698,2]
[361630490,1747653042895,-513.42,0.00013698,2]